bitfinex/quotes_BTCUSD_20250105
["timestamp","ask_amount","ask_price","bid_price","bid_amount"]
[1736086417412,0.98101925,97675.0,97674.0,0.00016664]
[1736086417638,0.97201925,97675.0,97674.0,0.00016664]
[1736086419156,0.98101925,97675.0,97674.0,0.00016664]
[1736086419932,1.06101925,97675.0,97674.0,0.00016664]
[1736086422187,1.06532382,97675.0,97674.0,0.00016664]
[1736086425460,1.05828382,97675.0,97674.0,0.00016664]
[1736086425663,0.97828382,97675.0,97674.0,0.00016664]
[1736086425871,0.64399982,97675.0,97674.0,0.09656285]
[1736086426085,0.63480752,97675.0,97674.0,0.09656285]
[1736086426762,0.63480752,97675.0,97674.0,0.10166285]
[1736086426978,0.62580752,97675.0,97674.0,0.10166285]
[1736086427198,0.63380752,97675.0,97674.0,0.10166285]
[1736086427412,0.62580752,97675.0,97674.0,0.10166285]
[1736086427760,0.62680752,97675.0,97674.0,0.10166285]
[1736086428358,0.5198212,97675.0,97674.0,0.10166285]
[1736086428987,0.5228212,97675.0,97674.0,0.10166285]
[1736086429645,0.5198212,97675.0,97674.0,0.10166285]
[1736086429850,0.5208212,97675.0,97674.0,0.10766285]
[1736086430923,0.5208212,97675.0,97674.0,0.19967447]
[1736086433150,0.51328,97675.0,97674.0,0.10766285]
[1736086433567,0.52090409,97675.0,97674.0,0.10256285]
[1736086437347,0.62489041,97675.0,97674.0,0.00616664]
[1736086437570,0.62489041,97675.0,97674.0,0.07742462]
[1736086437803,0.62489041,97675.0,97674.0,0.10256285]
[1736086441401,0.52090409,97675.0,97674.0,0.10256285]
[1736086441632,0.52090409,97675.0,97674.0,0.10766285]
[1736086447125,0.52110256,97675.0,97674.0,0.11156285]
[1736086448925,0.52055994,97675.0,97674.0,0.11156285]
[1736086457795,0.51653928,97675.0,97674.0,0.11156285]
[1736086461395,0.51671008,97675.0,97674.0,0.11156285]
[1736086471776,0.51671008,97675.0,97674.0,0.24959976]
[1736086472767,0.51671008,97675.0,97674.0,0.45164897]
[1736086477671,0.51409884,97675.0,97674.0,0.55164897]
[1736086477876,0.50888752,97675.0,97674.0,0.55164897]
[1736086478126,0.51670497,97675.0,97674.0,0.55164897]
[1736086479990,0.51670497,97675.0,97674.0,0.58363741]
[1736086480394,0.51670497,97675.0,97674.0,0.55164897]
[1736086481020,0.51670497,97675.0,97674.0,0.8258981]
[1736086481934,0.51670497,97675.0,97674.0,0.85617288]
[1736086483332,0.51670497,97675.0,97674.0,0.58192375]
[1736086484587,0.51670497,97675.0,97674.0,0.85617288]
[1736086485809,0.51670497,97675.0,97674.0,0.58192375]
[1736086486213,0.51570497,97675.0,97674.0,0.57592375]
[1736086486422,0.51470497,97675.0,97674.0,0.56692375]
[1736086486617,0.51570497,97675.0,97674.0,0.57592375]
[1736086486900,0.51670497,97675.0,97674.0,0.58292375]
[1736086487521,0.51470497,97675.0,97674.0,0.56692375]
[1736086487735,0.51470497,97675.0,97674.0,0.66692375]
[1736086487944,0.00898825,97675.0,97674.0,0.70789231]
[1736086488393,0.0011708,97675.0,97674.0,0.70789231]
[1736086489478,0.0011708,97675.0,97674.0,0.71289231]
[1736086489689,0.0011708,97675.0,97674.0,1.18902931]
[1736086490051,0.0001708,97684.0,97683.0,0.38066521]
[1736086491066,0.0001708,97684.0,97683.0,0.28066521]
[1736086491651,0.0001708,97684.0,97683.0,0.28966521]
[1736086491897,0.0001708,97684.0,97683.0,0.62975133]
[1736086492075,0.0001708,97684.0,97683.0,0.72975133]
[1736086492897,0.0001708,97684.0,97683.0,0.73475133]
[1736086501964,0.0768708,97684.0,97683.0,0.73475133]
[1736086502180,0.0768708,97684.0,97683.0,0.45048233]
[1736086502609,0.22905712,97684.0,97683.0,0.4253441]
[1736086503039,0.23692981,97684.0,97683.0,0.4253441]
[1736086503456,0.23692981,97684.0,97683.0,0.45048233]
[1736086503661,0.23692981,97684.0,97683.0,0.44548233]
[1736086503867,0.23692981,97684.0,97683.0,0.4233441]
[1736086504078,0.23692981,97684.0,97683.0,0.43948233]
[1736086504289,0.23692981,97684.0,97683.0,0.4143441]
[1736086504498,0.23692981,97684.0,97683.0,0.4193441]
[1736086504715,0.23692981,97684.0,97683.0,0.4143441]
[1736086504913,0.23692981,97684.0,97683.0,0.16618376]
[1736086505124,0.23692981,97684.0,97683.0,0.17118376]
[1736086505339,0.23692981,97684.0,97683.0,0.09492578]
[1736086505547,0.023,97682.0,97681.0,0.13788867]
[1736086505764,0.25148632,97682.0,97681.0,0.13788867]
[1736086506185,0.1245,97681.0,97678.0,0.09639621]
[1736086506363,0.1245,97679.0,97678.0,0.07125798]
[1736086506514,0.22848632,97679.0,97678.0,0.07125798]
[1736086506719,0.23111858,97679.0,97678.0,0.07125798]
[1736086506926,0.23111858,97679.0,97678.0,0.09639621]
[1736086507260,0.41539558,97679.0,97678.0,0.09639621]
[1736086507783,0.42247558,97679.0,97678.0,0.09639621]
[1736086508312,0.42547558,97679.0,97678.0,0.09259621]
[1736086509005,0.42447558,97679.0,97678.0,0.09159621]
[1736086509420,0.42747558,97679.0,97678.0,0.09259621]
[1736086509641,0.42547558,97679.0,97678.0,0.09259621]
[1736086510066,0.42947558,97679.0,97678.0,0.09259621]
[1736086510477,0.42547558,97679.0,97678.0,0.09259621]
[1736086510686,0.42247558,97679.0,97678.0,0.09159621]
[1736086510901,0.42547558,97679.0,97678.0,0.09159621]
[1736086511467,0.42847558,97679.0,97678.0,0.09259621]
[1736086511670,0.42547558,97679.0,97678.0,0.09159621]
[1736086512096,0.42847558,97679.0,97678.0,0.09259621]
[1736086512441,0.43368251,97679.0,97678.0,0.09259621]
[1736086512929,0.42660251,97679.0,97678.0,0.09259621]
[1736086513058,0.43368251,97679.0,97678.0,0.09259621]
[1736086516490,0.42160251,97679.0,97678.0,0.09259621]
[1736086516703,0.42868251,97679.0,97678.0,0.09259621]
[1736086519927,0.42666396,97679.0,97678.0,0.09259621]
[1736086520779,0.42666396,97679.0,97678.0,0.09268161]
[1736086520987,0.42683476,97679.0,97678.0,0.09268161]
[1736086521229,0.42683476,97679.0,97678.0,0.02622363]
[1736086522629,0.41975476,97679.0,97678.0,0.0010854]
[1736086522808,0.42683476,97679.0,97678.0,0.02622363]
[1736086524867,0.41975476,97679.0,97678.0,0.02622363]
[1736086525093,0.42683476,97679.0,97678.0,0.02622363]
[1736086528838,0.19007776,97679.0,97678.0,0.09268161]
[1736086529523,0.11499631,97679.0,97678.0,0.09268161]
[1736086529727,0.11799631,97679.0,97678.0,0.09268161]
[1736086530072,0.11499631,97679.0,97678.0,0.09168161]
[1736086530283,0.11499631,97679.0,97678.0,0.09268161]
[1736086530684,0.11199631,97679.0,97678.0,0.09368161]
[1736086531205,0.11199631,97679.0,97678.0,0.09668161]
[1736086532220,0.11199631,97679.0,97678.0,0.09468161]
[1736086533025,0.11199631,97679.0,97678.0,0.09168161]
[1736086533251,0.11499631,97679.0,97678.0,0.09168161]
[1736086533703,0.11199631,97679.0,97678.0,0.09168161]
[1736086534434,0.11499631,97679.0,97678.0,0.09168161]
[1736086534866,0.11199631,97679.0,97678.0,0.09168161]
[1736086535479,0.11199631,97679.0,97678.0,0.09268161]
[1736086536070,0.11199631,97679.0,97678.0,0.09168161]
[1736086536275,0.11299631,97679.0,97678.0,0.09168161]
[1736086536476,0.11499631,97679.0,97678.0,0.09168161]
[1736086536720,0.11399631,97679.0,97678.0,0.09168161]
[1736086536921,0.11699631,97679.0,97678.0,0.09268161]
[1736086537097,0.11499631,97679.0,97678.0,0.09268161]
[1736086537458,0.11199631,97679.0,97678.0,0.09168161]
[1736086537666,0.11199631,97679.0,97678.0,0.09268161]
[1736086537878,0.11499631,97679.0,97678.0,0.09268161]
[1736086538199,0.11199631,97679.0,97678.0,0.09168161]
[1736086539003,0.19169631,97679.0,97678.0,0.09168161]
[1736086539770,0.18969631,97679.0,97678.0,0.09168161]
[1736086540100,0.19169631,97679.0,97678.0,0.02522363]
[1736086540269,0.23709631,97679.0,97678.0,0.09168161]
[1736086540468,0.24009631,97679.0,97678.0,0.09268161]
[1736086540679,0.24714559,97679.0,97678.0,0.09168161]
[1736086541258,0.25014559,97679.0,97678.0,0.09268161]
[1736086541461,0.24714559,97679.0,97678.0,0.09168161]
[1736086541856,0.25014559,97679.0,97678.0,0.09268161]
[1736086542060,0.42114559,97679.0,97678.0,0.0010854]
[1736086542629,0.42314559,97679.0,97678.0,0.0010854]
[1736086549244,0.173,97676.0,97675.0,8.54e-05]
[1736086549449,0.39938632,97676.0,97675.0,8.54e-05]
[1736086549652,0.59141631,97676.0,97675.0,8.54e-05]
[1736086550465,0.60041631,97676.0,97675.0,0.0010854]
[1736086550878,0.59141631,97676.0,97675.0,8.54e-05]
[1736086551296,0.60041631,97676.0,97675.0,0.0010854]
[1736086551952,0.69160072,97676.0,97675.0,0.0010854]
[1736086552164,0.68260072,97676.0,97675.0,8.54e-05]
[1736086552767,0.68760072,97676.0,97675.0,8.54e-05]
[1736086552989,0.67545466,97676.0,97675.0,8.54e-05]
[1736086553514,0.67045466,97676.0,97675.0,8.54e-05]
[1736086553787,0.67945466,97676.0,97675.0,0.0010854]
[1736086554974,0.68545466,97676.0,97675.0,0.0010854]
[1736086556170,0.60641631,97676.0,97675.0,0.0010854]
[1736086567330,1.15185833,97676.0,97675.0,0.0010854]
[1736086570622,1.15185833,97676.0,97675.0,4e-07]
[1736086572327,1.11831631,97676.0,97675.0,4e-07]
[1736086572534,1.12535631,97676.0,97675.0,4e-07]
[1736086573992,1.15873827,97676.0,97675.0,4e-07]
[1736086576604,1.12535631,97676.0,97675.0,4e-07]
[1736086578469,1.15889833,97676.0,97675.0,4e-07]
[1736086578831,1.15897833,97676.0,97675.0,4e-07]
[1736086579436,1.15897833,97676.0,97674.0,4e-08]
[1736086579437,0.023,97675.0,97674.0,4e-08]
[1736086579623,0.87856945,97675.0,97674.0,4e-08]
[1736086579826,0.97958806,97675.0,97674.0,4e-08]
[1736086580831,1.07077247,97675.0,97674.0,4e-08]
[1736086581011,0.96975386,97675.0,97674.0,0.00100004]
[1736086581188,0.97875386,97675.0,97674.0,0.00100004]
[1736086581963,0.03354202,97669.0,97666.0,48.93215247]
[1736086582167,0.35888632,97667.0,97666.0,48.93215247]
[1736086582339,0.87078632,97667.0,97666.0,48.93215247]
[1736086583351,0.87790632,97667.0,97666.0,48.93215247]
[1736086584225,0.83097859,97667.0,97666.0,48.93215247]
[1736086584442,0.83097859,97667.0,97666.0,48.93315247]
[1736086584678,0.83097859,97667.0,97666.0,48.93215247]
[1736086584880,0.83997859,97667.0,97666.0,48.93315247]
[1736086585078,0.84397859,97667.0,97666.0,48.93315247]
[1736086586126,0.86697859,97667.0,97666.0,48.93315247]
[1736086586793,0.88721224,97667.0,97666.0,48.93315247]
[1736086588597,0.92075426,97667.0,97666.0,48.93315247]
[1736086589016,1.01193867,97667.0,97666.0,48.93315247]
[1736086590139,0.92075426,97667.0,97666.0,48.93315247]
[1736086593205,1.09854677,97667.0,97666.0,48.93315247]
[1736086593340,1.05772481,97667.0,97666.0,48.93315247]
[1736086594510,0.92075426,97667.0,97666.0,48.93315247]
[1736086597236,1.10385927,97667.0,97666.0,48.93315247]
[1736086598402,0.92075426,97667.0,97666.0,48.93315247]
[1736086599531,0.92075426,97667.0,97666.0,48.8305077]
[1736086599729,0.95232704,97667.0,97666.0,48.8305077]
[1736086600484,1.17680563,97667.0,97666.0,48.8305077]
[1736086600671,1.16780563,97667.0,97666.0,48.8295077]
[1736086601045,1.13623285,97667.0,97666.0,48.8295077]
[1736086601253,1.12911285,97667.0,97666.0,48.8295077]
[1736086601456,1.13623285,97667.0,97666.0,48.8295077]
[1736086601810,0.90775426,97667.0,97666.0,48.8295077]
[1736086601985,0.91675426,97667.0,97666.0,48.8305077]
[1736086602228,0.91675426,97667.0,97666.0,48.8108777]
[1736086602229,1.10260235,97667.0,97666.0,48.8108777]
[1736086602433,1.09360235,97667.0,97666.0,48.8098777]
[1736086602637,1.08660235,97667.0,97666.0,48.8088777]
[1736086602842,1.14240235,97667.0,97666.0,48.8098777]
[1736086603044,1.04541603,97667.0,97666.0,48.8108777]
[1736086603279,1.03641603,97667.0,97666.0,48.8098777]
[1736086603485,1.02941603,97667.0,97666.0,48.8088777]
[1736086603658,1.03841603,97667.0,97666.0,48.8088777]
[1736086603888,1.04541603,97667.0,97666.0,48.78969509]
[1736086604098,1.03641603,97667.0,97666.0,48.78969509]
[1736086604942,1.12846492,97667.0,97666.0,48.78969509]
[1736086605145,1.12146492,97667.0,97666.0,48.78869509]
[1736086605568,1.13746492,97667.0,97666.0,48.79069509]
[1736086606085,1.12146492,97667.0,97666.0,48.78869509]
[1736086606238,1.13046492,97667.0,97666.0,48.78969509]
[1736086606445,1.12863572,97667.0,97666.0,48.78969509]
[1736086606866,1.13063572,97667.0,97666.0,48.78969509]
[1736086607044,1.13063572,97667.0,97666.0,48.78869509]
[1736086607398,1.12163572,97667.0,97666.0,48.78869509]
[1736086607615,1.13063572,97667.0,97666.0,48.78969509]
[1736086608438,1.13763572,97667.0,97666.0,48.79069509]
[1736086608822,1.13063572,97667.0,97666.0,48.78969509]
[1736086609242,1.13763572,97667.0,97666.0,48.79069509]
[1736086610222,1.13763572,97667.0,97666.0,48.7833196]
[1736086610434,3.52553083,97667.0,97666.0,47.73555244]
[1736086610641,3.53086031,97667.0,97666.0,47.5135533]
[1736086610854,3.53086031,97667.0,97666.0,47.06118558]
[1736086611065,3.53086031,97667.0,97666.0,46.74760713]
[1736086611274,3.53086031,97667.0,97666.0,46.38251281]
[1736086611485,3.62784663,97667.0,97666.0,46.07393436]
[1736086611743,3.62784663,97667.0,97666.0,45.70054214]
[1736086612012,3.62643636,97667.0,97666.0,45.35300769]
[1736086612311,3.62643636,97667.0,97666.0,45.13348289]
[1736086612545,3.66772914,97667.0,97666.0,44.7438157]
[1736086612781,3.67672914,97667.0,97666.0,44.25262104]
[1736086612992,5.66805914,97667.0,97666.0,43.90408659]
[1736086613224,5.58847573,97667.0,97666.0,43.02509928]
[1736086613449,5.59747573,97667.0,97666.0,43.00441771]
[1736086613718,5.57947573,97667.0,97666.0,42.94198371]
[1736086613961,5.57947573,97667.0,97666.0,42.92150571]
[1736086614217,5.74022764,97667.0,97666.0,40.18126353]
[1736086614492,1.37317328,97667.0,97666.0,12.24473089]
[1736086614673,1.82754324,97667.0,97666.0,5.38570284]
[1736086614906,1.82754324,97667.0,97638.0,0.00102388]
[1736086614907,1.82754324,97667.0,97493.0,0.05155079]
[1736086614908,0.004,97550.0,97493.0,0.05155079]
[1736086615115,0.07486177,97532.0,97484.0,0.00217713]
[1736086615328,0.184643,97485.0,97484.0,0.00217713]
[1736086615539,0.07486177,97503.0,97492.0,0.40729361]
[1736086615754,0.27802498,97493.0,97492.0,0.28971861]
[1736086615988,0.78992498,97493.0,97492.0,0.28971861]
[1736086616195,0.79827536,97493.0,97492.0,0.28971861]
[1736086616408,0.79832468,97493.0,97492.0,0.28971861]
[1736086616625,0.902311,97493.0,97492.0,0.16314161]
[1736086616832,0.902311,97493.0,97484.0,0.00217713]
[1736086616833,0.40950477,97485.0,97484.0,0.00217713]
[1736086617056,1.02828222,97485.0,97484.0,0.00217713]
[1736086617259,4.5289241,97485.0,97484.0,0.00217713]
[1736086617686,0.05762307,97482.0,97481.0,0.73065816]
[1736086617897,0.31160939,97482.0,97481.0,0.73065816]
[1736086618102,0.72706988,97482.0,97481.0,0.49863474]
[1736086618318,0.77882682,97482.0,97481.0,0.49863474]
[1736086618520,4.14182938,97482.0,97481.0,0.28006092]
[1736086618729,4.14182938,97482.0,97481.0,0.15347592]
[1736086618942,4.1971074,97482.0,97481.0,0.15347592]
[1736086619142,4.20458745,97482.0,97481.0,0.04053216]
[1736086619359,4.24003495,97482.0,97481.0,0.04053216]
[1736086619569,4.20345441,97482.0,97481.0,0.04053216]
[1736086619780,0.05762307,97479.0,97478.0,0.0094]
[1736086619985,0.18822385,97479.0,97478.0,0.0094]
[1736086620195,0.77836336,97484.0,97478.0,0.0094]
[1736086620408,0.00323639,97483.0,97478.0,0.00936]
[1736086620616,0.0166205,97482.0,97480.0,0.12844801]
[1736086621026,0.10398632,97481.0,97480.0,0.12844801]
[1736086621236,0.10398632,97481.0,97480.0,0.13784801]
[1736086621441,0.10398632,97481.0,97480.0,0.0094]
[1736086621652,0.44847563,97482.0,97481.0,0.10680837]
[1736086621869,0.44847563,97482.0,97481.0,1.61842921]
[1736086621870,0.0076205,97482.0,97481.0,1.61842921]
[1736086622099,0.03627685,97497.0,97492.0,0.07120849]
[1736086622307,0.03627685,97497.0,97481.0,1.51942921]
[1736086622308,0.06550533,97492.0,97491.0,0.00680837]
[1736086622518,0.06550533,97492.0,97491.0,0.0094]
[1736086622727,0.06865149,97492.0,97491.0,1.5094]
[1736086622927,0.32263781,97492.0,97491.0,1.5094]
[1736086623149,0.31949165,97492.0,97491.0,0.0094]
[1736086623377,0.06865149,97492.0,97491.0,0.0094]
[1736086623593,0.06865149,97492.0,97491.0,1.5094]
[1736086623802,0.06865149,97492.0,97491.0,1.62138632]
[1736086623803,0.06650533,97492.0,97491.0,1.62138632]
[1736086624007,0.06640333,97492.0,97491.0,1.5174]
[1736086624212,0.06640333,97492.0,97491.0,1.5094]
[1736086624442,0.32138965,97492.0,97491.0,0.1382]
[1736086624662,0.32452555,97492.0,97491.0,0.1382]
[1736086624868,0.32252555,97492.0,97491.0,0.1302]
[1736086625085,0.32252555,97492.0,97491.0,0.19704]
[1736086625506,0.17352555,97492.0,97491.0,0.07384]
[1736086625719,0.68919155,97492.0,97491.0,0.07384]
[1736086625928,0.58420523,97492.0,97491.0,0.06684]
[1736086626131,0.58420523,97492.0,97491.0,0.05744]
[1736086626337,0.43420523,97492.0,97491.0,0.072584]
[1736086626560,0.43520523,97492.0,97491.0,0.072184]
[1736086626775,0.43420523,97492.0,97491.0,0.072584]
[1736086627088,0.43420523,97492.0,97491.0,0.06144]
[1736086627323,0.10632025,97495.0,97491.0,0.07484]
[1736086627527,0.00731355,97492.0,97491.0,0.07133419]
[1736086627725,0.1,97536.0,97491.0,0.07133419]
[1736086627726,0.08923885,97501.0,97491.0,0.07133419]
[1736086627926,0.00829279,97492.0,97491.0,0.07093419]
[1736086628130,0.25398632,97492.0,97491.0,0.06193419]
[1736086628471,0.25632274,97492.0,97491.0,0.00449419]
[1736086628649,0.25632274,97492.0,97491.0,0.01389419]
[1736086628650,0.26127462,97492.0,97491.0,0.01389419]
[1736086629201,0.0072883,97492.0,97491.0,0.01389419]
[1736086629409,0.00722442,97492.0,97491.0,0.00989419]
[1736086629621,0.00722442,97492.0,97491.0,0.01789419]
[1736086629827,0.00722442,97492.0,97491.0,0.02389419]
[1736086630045,0.00722442,97492.0,97491.0,0.01789419]
[1736086630259,0.00722442,97492.0,97491.0,0.00989419]
[1736086630463,0.01622442,97492.0,97491.0,0.01489419]
[1736086630678,0.01622442,97492.0,97491.0,0.01389419]
[1736086630679,0.00722442,97492.0,97491.0,0.01389419]
[1736086630810,0.00722442,97492.0,97491.0,0.0094]
[1736086631012,0.00722442,97492.0,97491.0,0.0104]
[1736086631241,0.00495188,97492.0,97491.0,0.0094]
[1736086631443,0.00745314,97492.0,97491.0,0.0094]
[1736086631650,0.00745314,97492.0,97491.0,0.0104]
[1736086631829,0.0001712,97492.0,97491.0,0.0104]
[1736086632665,0.0001712,97492.0,97491.0,0.001]
[1736086632871,0.25647606,97492.0,97491.0,0.0154]
[1736086633071,0.26144287,97492.0,97491.0,0.006]
[1736086633321,0.26144287,97492.0,97491.0,0.0094]
[1736086633571,0.26844287,97492.0,97491.0,0.0094]
[1736086633782,0.44607287,97492.0,97491.0,0.0114]
[1736086634186,0.45507287,97492.0,97491.0,0.0104]
[1736086634393,0.18466,97477.0,97471.0,0.05748]
[1736086634643,0.184662,97475.0,97471.0,0.05748]
[1736086634899,0.25398632,97474.0,97472.0,0.0094]
[1736086635101,0.25398632,97474.0,97471.0,0.05748]
[1736086635102,0.15,97472.0,97471.0,0.05748]
[1736086635309,0.15,97472.0,97471.0,0.06688]
[1736086635513,0.00726815,97474.0,97471.0,0.07357656]
[1736086635716,0.00726815,97474.0,97471.0,0.25824456]
[1736086635913,0.01466718,97492.0,97473.0,0.184666]
[1736086636134,0.15566718,97492.0,97472.0,0.0474]
[1736086636338,0.15,97490.0,97473.0,0.184666]
[1736086636510,0.15,97490.0,97474.0,0.05904022]
[1736086636683,0.00229985,97489.0,97475.0,0.0755]
[1736086637141,0.00229985,97489.0,97476.0,1.5]
[1736086637344,0.00229985,97489.0,97476.0,1.70398632]
[1736086637549,0.00266718,97492.0,97477.0,0.184658]
[1736086637759,0.009,97490.0,97477.0,0.184658]
[1736086638173,0.009,97490.0,97478.0,1.5]
[1736086638371,0.184636,97489.0,97479.0,0.0094]
[1736086638603,0.184636,97489.0,97480.0,0.0094]
[1736086638806,0.00495458,97488.0,97480.0,0.023738]
[1736086639012,0.00495458,97488.0,97480.0,0.0094]
[1736086639219,0.009,97490.0,97481.0,0.184651]
[1736086639423,0.001,97489.0,97485.0,0.1]
[1736086639631,0.1,97521.0,97487.0,0.023]
[1736086639837,0.28856332,97521.0,97496.0,0.184621]
[1736086640040,0.184568,97525.0,97503.0,0.184609]
[1736086640258,0.28855432,97525.0,97503.0,0.184609]
[1736086640440,0.184571,97523.0,97503.0,0.184609]
[1736086640653,0.184571,97523.0,97497.0,0.3544462]
[1736086640861,0.00235101,97522.0,97497.0,0.1698252]
[1736086641078,0.1,97509.0,97498.0,0.0094]
[1736086641288,0.10633075,97508.0,97498.0,0.0094]
[1736086641497,0.184606,97505.0,97498.0,0.0094]
[1736086641909,0.184609,97503.0,97498.0,0.0094]
[1736086642107,0.184609,97503.0,97498.0,0.02249065]
[1736086642354,0.00236922,97502.0,97498.0,0.0094]
[1736086642570,0.00236922,97502.0,97482.0,0.00049598]
[1736086642571,0.184647,97483.0,97482.0,0.00049598]
[1736086642788,0.38863332,97483.0,97482.0,0.00049598]
[1736086643008,0.54085982,97483.0,97482.0,0.00989598]
[1736086643218,0.55962915,97483.0,97482.0,0.00049598]
[1736086643422,0.55962915,97483.0,97482.0,0.00989598]
[1736086643839,0.56862915,97483.0,97482.0,0.01089598]
[1736086644254,0.55962915,97483.0,97482.0,0.00989598]
[1736086644464,0.57262915,97483.0,97482.0,0.01089598]
[1736086644868,0.35964283,97483.0,97482.0,0.00989598]
[1736086645075,0.1522265,97483.0,97482.0,0.01089598]
[1736086645288,0.0112265,97483.0,97482.0,0.01089598]
[1736086645498,0.03016276,97483.0,97482.0,1.51089598]
[1736086645908,0.02793626,97483.0,97482.0,0.0094]
[1736086646386,0.02433572,97483.0,97482.0,0.0094]
[1736086646603,0.02833572,97483.0,97482.0,0.0104]
[1736086646777,0.03733572,97483.0,97482.0,0.0104]
[1736086647190,0.03333572,97483.0,97482.0,0.0094]
[1736086647383,0.03833572,97483.0,97482.0,1.5094]
[1736086647637,0.03833572,97483.0,97482.0,1.5044]
[1736086647809,0.20858326,97483.0,97482.0,0.0094]
[1736086648041,0.02393626,97483.0,97482.0,0.0094]
[1736086648246,0.03134318,97483.0,97482.0,0.0094]
[1736086648449,0.03134318,97483.0,97482.0,1.5114]
[1736086648860,0.02593626,97483.0,97482.0,1.5112]
[1736086649604,0.22292258,97483.0,97482.0,1.502]
[1736086649808,0.22292258,97483.0,97482.0,0.0092]
[1736086650005,0.22292258,97483.0,97469.0,8.56e-05]
[1736086650006,0.18467,97471.0,97469.0,8.56e-05]
[1736086650236,0.33467,97471.0,97469.0,8.56e-05]
[1736086650439,0.33467,97471.0,97470.0,0.0092]
[1736086651083,0.16895152,97471.0,97470.0,0.0092]
[1736086651290,0.27293784,97471.0,97470.0,1.5092]
[1736086651892,0.16895152,97471.0,97470.0,1.5092]
[1736086652629,0.27293784,97471.0,97470.0,1.5092]
[1736086653038,0.16895152,97471.0,97470.0,1.5]
[1736086653250,0.17095152,97471.0,97470.0,1.5102]
[1736086653475,0.16895152,97471.0,97470.0,1.5102]
[1736086653680,0.17125348,97471.0,97470.0,1.5102]
[1736086653854,0.17725348,97471.0,97470.0,1.5102]
[1736086654085,0.17125348,97471.0,97470.0,1.5092]
[1736086654318,0.17225348,97471.0,97470.0,1.5092]
[1736086654532,0.17825348,97471.0,97470.0,1.5102]
[1736086654921,0.17125348,97471.0,97470.0,1.5092]
[1736086655132,0.184672,97470.0,97455.0,0.0474]
[1736086655344,0.17125348,97471.0,97470.0,0.0092856]
[1736086655547,0.15,97471.0,97470.0,0.0092856]
[1736086655757,0.15308204,97471.0,97470.0,0.0092856]
[1736086656107,0.17203576,97471.0,97470.0,1.5092856]
[1736086656319,0.17803576,97471.0,97470.0,1.5112856]
[1736086656690,0.17203576,97471.0,97470.0,1.5102856]
[1736086656895,0.02203576,97471.0,97470.0,1.5092856]
[1736086657069,0.02803576,97471.0,97470.0,1.5102856]
[1736086657276,0.02433772,97471.0,97470.0,1.55704916]
[1736086657683,0.02433772,97471.0,97470.0,1.55604916]
[1736086657889,0.03033772,97471.0,97470.0,1.55704916]
[1736086658095,0.02433772,97471.0,97470.0,1.55704916]
[1736086658309,0.02433772,97471.0,97470.0,1.5102856]
[1736086659120,0.01895372,97471.0,97470.0,1.5102856]
[1736086659499,0.02804432,97471.0,97470.0,1.5112856]
[1736086659908,0.02204432,97471.0,97470.0,1.5092856]
[1736086660125,0.02495372,97471.0,97470.0,1.5102856]
[1736086660333,0.02495372,97471.0,97470.0,1.5112856]
[1736086661140,0.02495372,97471.0,97470.0,1.5020856]
[1736086661343,0.02495372,97471.0,97470.0,1.5112856]
[1736086661741,0.02805426,97471.0,97470.0,1.5112856]
[1736086662537,0.17805426,97471.0,97470.0,1.5020856]
[1736086662744,0.28204058,97471.0,97470.0,1.5112856]
[1736086664275,0.28204058,97471.0,97470.0,1.5020856]
[1736086664494,0.38204058,97471.0,97470.0,0.0020856]
[1736086664695,0.38204058,97471.0,97470.0,0.0112856]
[1736086665250,0.38204058,97471.0,97470.0,0.0102856]
[1736086666470,0.71771317,97471.0,97470.0,0.0102856]
[1736086666850,0.71971317,97471.0,97470.0,0.0102856]
[1736086667072,0.71371317,97471.0,97470.0,0.0092856]
[1736086667271,0.72271317,97471.0,97470.0,0.0102856]
[1736086667473,0.72071317,97471.0,97470.0,0.0092]
[1736086667684,0.72071317,97471.0,97447.0,0.03296441]
[1736086667685,0.1,97458.0,97447.0,0.03296441]
[1736086667898,0.184713,97448.0,97447.0,0.03296441]
[1736086668108,0.20398632,97457.0,97448.0,0.0092]
[1736086668305,0.184712,97449.0,97448.0,0.0092]
[1736086668518,0.1847,97455.0,97448.0,1.5092]
[1736086668725,0.1847,97455.0,97449.0,0.07398032]
[1736086669093,0.18519567,97455.0,97448.0,0.0092]
[1736086669297,0.184712,97449.0,97448.0,0.0092]
[1736086669545,0.184712,97449.0,97448.0,1.5092]
[1736086669982,0.28869832,97449.0,97448.0,1.5]
[1736086670188,0.25,97448.0,97447.0,0.03296441]
[1736086670391,0.35398632,97448.0,97447.0,0.04216441]
[1736086670601,0.37292255,97448.0,97447.0,1.54216441]
[1736086671009,0.37292255,97448.0,97447.0,0.04216441]
[1736086671424,0.37292255,97448.0,97447.0,0.03296441]
[1736086671637,0.37292255,97448.0,97447.0,0.04216441]
[1736086672047,1.58114955,97448.0,97447.0,0.03296441]
[1736086672251,1.55133355,97448.0,97447.0,0.03296441]
[1736086672463,0.60597155,97448.0,97447.0,0.03296441]
[1736086673533,0.38492255,97448.0,97447.0,0.03296441]
[1736086673676,1.44943555,97448.0,97447.0,0.03296441]
[1736086674124,1.45443555,97448.0,97447.0,0.03296441]
[1736086674324,0.457727,97441.0,97440.0,1.5e-07]
[1736086674526,0.1,97431.0,97430.0,0.0867779]
[1736086674729,3.13533332,97431.0,97430.0,9e-07]
[1736086674901,0.55398632,97431.0,97430.0,9e-07]
[1736086675258,0.47698632,97431.0,97430.0,9e-07]
[1736086675543,0.49592255,97431.0,97430.0,9e-07]
[1736086675966,0.83039945,97431.0,97430.0,9e-07]
[1736086676175,0.71639945,97431.0,97430.0,9e-07]
[1736086676396,0.71639945,97431.0,97406.0,0.29364669]
[1736086676397,0.434791,97407.0,97406.0,0.25267316]
[1736086676617,0.83278932,97407.0,97406.0,0.21160716]
[1736086676821,0.83278932,97407.0,97406.0,0.17054116]
[1736086677175,0.87828428,97407.0,97406.0,0.10894216]
[1736086677356,0.97828428,97407.0,97406.0,0.10894216]
[1736086677709,0.85577964,97407.0,97406.0,0.10894216]
[1736086677912,0.56176764,97407.0,97406.0,0.10894216]
[1736086678114,0.56176764,97407.0,97406.0,0.11810216]
[1736086678567,0.00377137,97407.0,97406.0,1.61810216]
[1736086679000,0.184776,97415.0,97406.0,1.61810216]
[1736086679204,0.01273715,97407.0,97406.0,0.11816816]
[1736086679487,0.09039497,97416.0,97407.0,0.0818]
[1736086679695,0.09039497,97416.0,97415.0,1.5]
[1736086680076,0.184774,97417.0,97415.0,1.5]
[1736086680314,0.369532,97421.0,97415.0,0.00916]
[1736086680734,0.369532,97421.0,97420.0,1.5]
[1736086680966,0.184731,97439.0,97420.0,1.5]
[1736086681194,0.184742,97434.0,97421.0,0.0476]
[1736086681400,0.184731,97439.0,97421.0,0.0476]
[1736086681623,0.369463,97439.0,97421.0,0.0476]
[1736086681829,0.369463,97439.0,97422.0,0.005676]